{"text_format":"1","workbook":"xlsx","n_sheets":3,"sheets":["FORMATOPEDIDO2.0","Resumen","menu"],"not_rendered":{"charts":0,"images":8,"macros":1,"external_links":0,"defined_names":2,"comments":1,"pivot_tables":0},"unopened":[],"bounds":{"document_bytes":16777216,"sheet_cells":100000,"rows_first":2000,"rows_last":500,"rows_between":2000,"halvings":0,"cell_chars":16384,"cell_head_chars":4096},"cells_cut":0,"cells_raw":0,"read":"whole","date_system":"1900"}

{"sheet":"FORMATOPEDIDO2.0","index":0,"n_rows":76,"n_cols":10,"rows_kept":76,"cut":false,"hidden":false,"merged":[[17,7,17,8],[17,9,17,10],[41,9,41,10],[24,8,25,8],[24,10,25,10],[29,7,29,8],[29,9,29,10],[41,7,41,8],[65,3,65,4],[65,5,65,6],[41,5,41,6],[65,7,65,8],[65,9,65,10],[24,2,25,2],[53,1,53,2],[53,3,53,4],[53,5,53,6],[48,6,49,6],[2,0,2,10],[60,2,61,2],[60,4,61,4],[60,6,61,6],[60,8,61,8],[60,10,61,10],[36,2,37,2],[36,4,37,4],[36,6,37,6],[36,8,37,8],[36,10,37,10],[48,2,49,2],[48,4,49,4],[3,0,3,10],[53,7,53,8],[53,9,53,10],[5,1,5,2],[6,1,6,2],[6,3,6,4],[4,0,4,2],[5,3,5,8],[6,6,6,8],[17,3,17,4],[17,5,17,6],[77,0,77,1],[7,0,7,2],[8,0,8,2],[9,1,9,2],[8,3,8,6],[9,3,9,6],[24,4,25,4],[24,6,25,6],[29,1,29,2],[29,3,29,4],[29,5,29,6],[41,1,41,2],[41,3,41,4],[65,1,65,2],[0,3,1,7],[78,0,81,9],[109,0,109,10],[8,8,8,9],[9,8,9,9],[11,0,11,10],[105,0,105,10],[106,0,106,10],[72,2,73,2],[72,4,73,4],[72,6,73,6],[72,8,73,8],[72,10,73,10],[48,8,49,8],[48,10,49,10],[17,1,17,2]]}
[null,null,null,"HAPPY LUNCHES SERVICE SAC \nCOLEGIO SANTA MARIA\nPRIMARIA"]
[]
["BCP CUENTA CORRIENTE: 194189468-2-00                                                         CODIGO INTERBANCARIO BCP: 002 194 00204619402594  \nBBVA CUENTA CORRIENTE: 0011-0149-0100033241-29                                           CODIGO INTERBANCARIO BBVA: 011 - 149 - 000100033241 - 29  "]
["FAVOR ENVIAR VOUCHER O TRANSFERENCIA ELECTRÓNICA A NUESTRO E-MAIL UNA VEZ REALIZADO EL ABONO EN NUESTRA CUENTA. GRACIAS POR SU COLABORACIÓN."]
[" DATOS DEL PADRE O APODERADO :"]
[null,"NOMBRES Y APELLIDOS:"]
[null,"TELÉFONO:","TELEFONO:",null,null,"CORREO ELECTRÓNICO:"]
["DATOS DEL ALUMNO                           :"]
["NOMBRES :",null,null,null,null,null,null,"GRADO Y SECCIÓN :"]
[null,"APELLIDOS :",null,null,null,null,null,"ALERGIAS :"]
[]
["IMPORTANTE: ES NECESARIO QUE LOS DATOS SOLICITADOS SEAN LLENADOS DE FORMA CORRECTA TANTO DEL TUTOR COMO DEL ALUMNO(A) . ELEGIR UNICAMENTE  LA OPCIÓN  EN LA FECHA  QUE DESEA EL SERVICIO,DE NO NECESITAR EL SERVICIO UN DÍA NO SELECCIONAR NINGUNA OPCIÓN ESE DÍA . YA QUE EL PROGRAMA CALCULARÁ LA CANTIDAD DE ALMUERZOS ELEGIDOS POR ALUMNO ASÍ COMO EL TOTAL A DEPOSITAR.PARA  REALIZAR  EL PEDIDO PARA UN ALUMNO MÁS DIRIGIRSE A LA SIGUIENTE HOJA ELECTRÓNICA.\nEN CADA HOJA ELECTRÓNICA DEBE DE HABER SOLO UN ALUMNO.\nNO RE-ENVIAR SIN HABER GUARDADO EL DOCUMENTO DESPUÉS DE HECHA LA SELECCIÓN"]
[]
[]
["Opción","Lunes",null,"Martes",null,"Miércoles",null,"Jueves",null,"Viernes"]
[null,null,null,{"$f":"menu!A12","v":"1 DE MARZO "},null,{"$f":"menu!A21","v":"2 DE MARZO "},null,{"$f":"menu!A30","v":"3 DE MARZO "},null,{"$f":"menu!A39","v":"4 DE MARZO "}]
[]
["Entrada",null,null,{"$f":"menu!C12","v":"PAPAS EMPEREJILADAS"},null,{"$f":"menu!C21","v":"PAPA A LA HUANCAINA"},null,{"$f":"menu!C30","v":"ENSALADA PARRILLERA"},null,{"$f":"menu!C39","v":"SOUFFLÉ DE VERDURAS"}]
["A",null,null,{"$f":"menu!C13","v":"VAINITAS SALTEADAS CON RES / ARROZ"},null,{"$f":"menu!C22","v":"ARROZ CON POLLO "},null,{"$f":"menu!C31","v":"ARVEJITAS VERDES CON HUEVITO AL GRILL/ARROZ PRIMAVERA"},null,{"$f":"menu!C40","v":"ESTOFADO DE POLLO CON ARROZ"}]
["B",null,null,{"$f":"menu!C14","v":"LENTEJAS GUISADAS CON RES Y HUEVO AL GRILL Y ARROZ PRIMAVERA"},null,{"$f":"menu!C23","v":"HAMBURGUESA AL PLATO CON ARROZ PRIMAVERA"},null,{"$f":"menu!C32","v":"POLLO EN SALSA DE CHAMPIGNONES CON ARROZ"},null,{"$f":"menu!C41","v":"SPAGHETTI A LA HUANCAINA CON LOMITO AL JUGO"}]
["C",null,null,{"$f":"menu!C15","v":"FILETE DE POLLO A LA PLANCHA , ARROZ Y VERDURAS"},null,{"$f":"menu!C24","v":"FILETE DE POLLO A LA PLANCHA PAPA SANCOCHADA Y VERDURAS"},null,{"$f":"menu!C33","v":"FILETE DE POLLO A LA PLANCHA , ARROZ Y VERDURAS"},null,{"$f":"menu!C42","v":"FILETE DE POLLO A LA PLANCHA PAPA SANCOCHADA Y VERDURAS"}]
["D",null,null,{"$f":"menu!C16","v":"ENSALADA DE BRÓCOLI CON POLLITO EN DADOS"},null,{"$f":"menu!C25","v":"ENSALADA DE ATÚN "},null,{"$f":"menu!C34","v":"ENSALADA DE GARBANZOS CON POLLITO"},null,{"$f":"menu!C43","v":"ENSALADA CRIOLLA CON POLLO AL GRILL "}]
["E",null,null,{"$f":"menu!C17","v":"HUEVITOS EN SU NIDO CON VERDURAS Y ARROZ"},null,{"$f":"menu!C26","v":"DEDITOS DE PESCADO CON YUCAS FRITAS "},null,{"$f":"menu!C35","v":"POLLITO ANTICUCHADO CON PURÉ DE ESPINACAS"},null,{"$f":"menu!C44","v":"PIZZA CLÁSICA CON ENSALADA"}]
["V",null,null,{"$f":"menu!C18","v":"SALTADO DE BRÓCOLI Y SOYA"},null,{"$f":"menu!C27","v":"FIDEOS EN SALSA DE ALBAHACA"},null,{"$f":"menu!C36","v":"ARROZ CHAUFA VEGETARIANO"},null,{"$f":"menu!C45","v":"LASAGNA VEGETARIANA"}]
["Postre",null,null,{"$f":"menu!C19","v":"CHICHA MORADA"},null,{"$f":"menu!C28","v":"MUFFIN DE FRUTA"},null,{"$f":"menu!C37","v":"GELATINA DE COLORES"},null,{"$f":"menu!C46","v":"DELICIA DE LIMÓN"}]
["Refresco ",null,null,{"$f":"menu!C20","v":"ALFAJOR"},null,{"$f":"menu!C29","v":"NARANJADA"},null,{"$f":"menu!C38","v":"CEBADA"},null,{"$f":"menu!C47","v":"CARAMBOLA"}]
[]
["Opción",{"$f":"menu!A48","v":"7 DE MARZO "},null,{"$f":"menu!A57","v":"8 DE MARZO "},null,{"$f":"menu!A66","v":"9 DE MARZO "},null,{"$f":"menu!A75","v":"10 DE MARZO "},null,{"$f":"menu!A84","v":"11 DE MARZO "}]
[]
["Entrada",{"$f":"menu!C48","v":"ENSALADA DE PALTA"},null,{"$f":"menu!C57","v":"ENSALADA DE PEPINO"},null,{"$f":"menu!C66","v":"ENSALADITA ORIENTAL "},null,{"$f":"menu!C75","v":"VERDURAS SALTEADAS"},null,{"$f":"menu!C84","v":"ENSALADA FRESCA"}]
["A",{"$f":"menu!C49","v":"SECO DE RES CON ARROZ"},null,{"$f":"menu!C58","v":"ARROZ CHAUFA DE POLLO Y CARNE"},null,{"$f":"menu!C67","v":"POLLO SALTADO CON ARROZ"},null,{"$f":"menu!C76","v":"POLLO A LA OLLA CON ARROZ A LA JARDINERA"},null,{"$f":"menu!C85","v":"CARAPULCRA GUISADA CON CERDO Y ARROZ"}]
["B",{"$f":"menu!C50","v":"SPAGHETTI EN SALSA BOLOGNESA"},null,{"$f":"menu!C59","v":"CAIHUA RELLENA DE CARNE CON ARROZ PRIMAVERA"},null,{"$f":"menu!C68","v":"PESCADO A LA PLANCHA CON VERDURAS Y ARROZ"},null,{"$f":"menu!C77","v":"SPAGHETTI A LA CARBONARA CON POLLO"},null,{"$f":"menu!C86","v":"PAPA RELLENA DE POLLO CON ARROZ PRIMAVERA"}]
["C",{"$f":"menu!C51","v":"FILETE DE POLLO A LA PLANCHA , ARROZ Y VERDURAS"},null,{"$f":"menu!C60","v":"FILETE DE POLLO A LA PLANCHA PAPA SANCOCHADA Y VERDURAS"},null,{"$f":"menu!C69","v":"FILETE DE POLLO A LA PLANCHA , ARROZ Y VERDURAS"},null,{"$f":"menu!C78","v":"FILETE DE POLLO A LA PLANCHA PAPA SANCOCHADA Y VERDURAS"},null,{"$f":"menu!C87","v":"FILETE DE POLLO A LA PLANCHA , ARROZ Y VERDURAS"}]
["D",{"$f":"menu!C52","v":"ENSALADA CHEFF CON POLLO AL GRILL "},null,{"$f":"menu!C61","v":"ENSALADA DELICIA CON PAVO"},null,{"$f":"menu!C70","v":" PALTA RELLENA CON POLLO Y VERDURAS"},null,{"$f":"menu!C79","v":"ENSALADA WALDORF CON POLLO AL HORNO"},null,{"$f":"menu!C88","v":"ENSALADA DE FIDEOS CON POLLITO"}]
["E",{"$f":"menu!C53","v":"OMELETTE CON POLLO EN TROZOS Y ARROZ PRIMAVERA"},null,{"$f":"menu!C62","v":"NUGGETS AL HORNO CON PAPAS DORADAS Y BRÓCOLI"},null,{"$f":"menu!C71","v":"POLLO AL GRILL CON PAPITAS Y VERDURAS"},null,{"$f":"menu!C80","v":"HUEVITOS EN SU NIDO CON PAPITAS"},null,{"$f":"menu!C89","v":"BISTECK CON PURÉ DE PAPA AMARILLA Y VERDURAS"}]
["V",{"$f":"menu!C54","v":"FILETE DE GLUTEN CON SALSA DE CHAMPIGNONES"},null,{"$f":"menu!C63","v":"HAMBURGUESA VEGETARIANA AL PLATO"},null,{"$f":"menu!C72","v":"CAUSA VEGETARIANA TRICOLOR"},null,{"$f":"menu!C81","v":"SALTADO VEGETARIANO DE COLIFLOR CON ARROZ"},null,{"$f":"menu!C90","v":"LENTEJAS GUISADAS / HUEVO FRITO Y ARROZ"}]
["Postre",{"$f":"menu!C55","v":"PYE DE MANZANA"},null,{"$f":"menu!C64","v":"BOMBITAS HL"},null,{"$f":"menu!C73","v":"FLAN CON GELATINA"},null,{"$f":"menu!C82","v":"FRUTA DE ESTACIÓN"},null,{"$f":"menu!C91","v":"GELATINA"}]
["Refresco ",{"$f":"menu!C56","v":"LIMONADA"},null,{"$f":"menu!C65","v":"CHICHA MORADA"},null,{"$f":"menu!C74","v":"MARACUYÁ"},null,{"$f":"menu!C83","v":"CARAMBOLA"},null,{"$f":"menu!C92","v":"LIMONADA"}]
[]
["Opción",{"$f":"menu!A93","v":"14 DE MARZO "},null,{"$f":"menu!A102","v":"15 DE MARZO "},null,{"$f":"menu!A111","v":"16 DE MARZO "},null,{"$f":"menu!A120","v":"17 DE MARZO "},null,{"$f":"menu!A129","v":"18 DE MARZO "}]
[]
["Entrada",{"$f":"menu!C93","v":"PAPAS EMPEREJILADAS"},null,{"$f":"menu!C102","v":"ENSALADA DE PEPINO"},null,{"$f":"menu!C111","v":"VERDURAS SALTEADAS"},null,{"$f":"menu!C120","v":"TEQUEÑOS RELLENOS"},null,{"$f":"menu!C129","v":"WANTAN CON TAMARINDO"}]
["A",{"$f":"menu!C94","v":"PESCADO A LA PLANCHA CON VERDURAS SALTEADAS"},null,{"$f":"menu!C103","v":"TALLARINES SALTADOS CON CARNE"},null,{"$f":"menu!C112","v":"POLLO A LA REINA CON ARROZ"},null,{"$f":"menu!C121","v":"CAU-CAU DE POLLO CON ARROZ"},null,{"$f":"menu!C130","v":"GUISITO DE CARNE CON ARROZ A LA JARDINERA"}]
["B",{"$f":"menu!C95","v":"CORDON BLEU CON ARROZ  PRIMAVERA"},null,{"$f":"menu!C104","v":"POLLO AL SILLAO CON ARROZ PRIMAVERA"},null,{"$f":"menu!C113","v":"ARROZ A LA CUBANA CON POLLO AL GRILL"},null,{"$f":"menu!C122","v":"FRIJOLES CANARIO CON GUISO DE RES Y ARROZ PRIMAVERA"},null,{"$f":"menu!C131","v":"ARROZ CHAUFA DE POLLO"}]
["C",{"$f":"menu!C96","v":"FILETE DE POLLO A LA PLANCHA PAPA SANCOCHADA Y VERDURAS"},null,{"$f":"menu!C105","v":"FILETE DE POLLO A LA PLANCHA , ARROZ Y VERDURAS"},null,{"$f":"menu!C114","v":"FILETE DE POLLO A LA PLANCHA PAPA SANCOCHADA Y VERDURAS"},null,{"$f":"menu!C123","v":"FILETE DE POLLO A LA PLANCHA , ARROZ Y VERDURAS"},null,{"$f":"menu!C132","v":"FILETE DE POLLO A LA PLANCHA PAPA SANCOCHADA Y VERDURAS"}]
["D",{"$f":"menu!C97","v":"ENSALADA DE CAIHUA CON POLLO AL GRILL"},null,{"$f":"menu!C106","v":"ENSALADA FRESCA CON POLLO AL GRILL "},null,{"$f":"menu!C115","v":"ENSALADA FRESCA CON POLLO ANTICUCHADO"},null,{"$f":"menu!C124","v":"ENSALADA CÉSAR CON POLLITO AL GRILL"},null,{"$f":"menu!C133","v":"ENSALADA DE LA CASA CON POLLO AL GRILL "}]
["E",{"$f":"menu!C98","v":"PIZZA CLÁSICA CON ENSALADITA"},null,{"$f":"menu!C107","v":"POLLO CON PIÑA / ARROZ CHAUFA"},null,{"$f":"menu!C116","v":"HAMBURGUESA DE RES AL PLATO CON ARROZ PRIMAVERA"},null,{"$f":"menu!C125","v":"DEDITOS DE PESCADO CON YUQUITAS AL HORNO"},null,{"$f":"menu!C134","v":"PAVITO CON ENSALADA RUSA "}]
["V",{"$f":"menu!C99","v":"HAMBURGUESA VEGETARIANA CON PURÉ DE PAPA AMARILLA"},null,{"$f":"menu!C108","v":"SALTADO DE CHOCLO VEGETARIANO"},null,{"$f":"menu!C117","v":"TORTILLA DE COLIFLOR VEGETARIANA CON ARROZ"},null,{"$f":"menu!C126","v":"SALTADO VEGETARIANO CON ARROZ"},null,{"$f":"menu!C135","v":"PURÉ DE ESPINACAS CON SALTADO VEGETARIANO"}]
["Postre",{"$f":"menu!C100","v":"ALFAJOR"},null,{"$f":"menu!C109","v":"QUEQUE DE FRUTAS"},null,{"$f":"menu!C118","v":"PIE DE MANZANA"},null,{"$f":"menu!C127","v":"GALLETAS NATURALES"},null,{"$f":"menu!C136","v":"FRUTA DE ESTACIÓN"}]
["Refresco ",{"$f":"menu!C101","v":"LIMONADA"},null,{"$f":"menu!C110","v":"CHICHA MORADA"},null,{"$f":"menu!C119","v":"LIMONADA"},null,{"$f":"menu!C128","v":"AGUA MINERAL"},null,{"$f":"menu!C137","v":"MARACUYÁ"}]
[]
["Opción",{"$f":"menu!A138","v":"21 DE MARZO "},null,{"$f":"menu!A147","v":"22 DE MARZO "},null,{"$f":"menu!A156","v":"23 DE MARZO "},null,{"$f":"menu!A165","v":"24 DE MARZO "},null,{"$f":"menu!A174","v":"25 DE MARZO "}]
[]
["Entrada",{"$f":"menu!C138","v":"HUEVO RELLENO"},null,{"$f":"menu!C147","v":"CHOCLITO CON QUESO"},null,{"$f":"menu!C156","v":"ENSALADA FRESCA"},null,{"$f":"menu!C165","v":"ENSALADA DE COL"},null,{"$f":"menu!C174","v":"OCOPA"}]
["A",{"$f":"menu!C139","v":"BISTECK CON PAPAS DORADAS Y ARROZ PRIMAVERA"},null,{"$f":"menu!C148","v":"VAINITAS SALTADAS CON POLLO /ARROZ "},null,{"$f":"menu!C157","v":"POLLO AL SILLAO CON ARROZ A LA JARDINERA"},null,{"$f":"menu!C166","v":"SPAGHETTI AL PESTO CON HAMBURGUESA DE CARNE"},null,{"$f":"menu!C175","v":"POLLO AL HORNO CON PURÉ DE ESPINACA Y ARROZ"}]
["B",{"$f":"menu!C140","v":"SPAGHETTI A LO ALFREDO CON POLLITO EN CUBOS"},null,{"$f":"menu!C149","v":"SECO DE RES CON ARROZ"},null,{"$f":"menu!C158","v":"ARROZ TAPADO CON PLATANITO AL GRILL "},null,{"$f":"menu!C167","v":"POLLO A LA OLLA CON ARROZ"},null,{"$f":"menu!C176","v":"LOCRO GUISADO CON QUESO/HUEVITO Y ARROZ"}]
["C",{"$f":"menu!C141","v":"FILETE DE POLLO A LA PLANCHA , ARROZ Y VERDURAS"},null,{"$f":"menu!C150","v":"FILETE DE POLLO A LA PLANCHA PAPA SANCOCHADA Y VERDURAS"},null,{"$f":"menu!C159","v":"FILETE DE POLLO A LA PLANCHA , ARROZ Y VERDURAS"},null,{"$f":"menu!C168","v":"FILETE DE POLLO A LA PLANCHA PAPA SANCOCHADA Y VERDURAS"},null,{"$f":"menu!C177","v":"FILETE DE POLLO A LA PLANCHA , ARROZ Y VERDURAS"}]
["D",{"$f":"menu!C142","v":"CAUSA RELLENA DE VERDURAS Y POLLO "},null,{"$f":"menu!C151","v":"ENSALADA STROGONOFF CON POLLITO"},null,{"$f":"menu!C160","v":"ENSALADA ORIENTAL CON POLLITO AL GRILL"},null,{"$f":"menu!C169","v":"SOUFFLÉ DE VERDURAS CON POLLO AL GRILL "},null,{"$f":"menu!C178","v":"SOLTERITO CON POLLITO A LA PLANCHA"}]
["E",{"$f":"menu!C143","v":"MILANESA DE PESCADO CON ARROZ PRIMAVERA"},null,{"$f":"menu!C152","v":"PIERNITA AL SILLAO CON ARROZ PRIMAVERA"},null,{"$f":"menu!C161","v":"DEDITOS DE POLLO CON LENTEJAS GUISADAS Y ARROZ PRIMAVERA"},null,{"$f":"menu!C170","v":"SPAGHETTI EN SALSA DE ALBAHACA CON POLLITO"},null,{"$f":"menu!C179","v":"NUGGETS AL HORNO CON TEQUEÑOS CON GUACAMOLE"}]
["V",{"$f":"menu!C144","v":"GLUTEN CON SALSA DE VERDURAS Y ARROZ"},null,{"$f":"menu!C153","v":"ARROZ CHAUFA VEGETARIANO"},null,{"$f":"menu!C162","v":"TORTILLA DE VEGETALES CON ARROZ"},null,{"$f":"menu!C171","v":"ARROZ CHAUFA VEGETARIANO"},null,{"$f":"menu!C180","v":"CAUCAU VEGETARIANO CON ARROZ"}]
["Postre",{"$f":"menu!C145","v":"FRUTA DE ESTACIÓN"},null,{"$f":"menu!C154","v":"AGUA DE MANZANA"},null,{"$f":"menu!C163","v":"DELICIA DE FRUTAS"},null,{"$f":"menu!C172","v":"ALFAJOR"},null,{"$f":"menu!C181","v":"GALLETAS NATURALES"}]
["Refresco ",{"$f":"menu!C146","v":"AGUA DE PIÑA"},null,{"$f":"menu!C155","v":"CARLOTA DE FRUTAS"},null,{"$f":"menu!C164","v":"MARACUYÁ"},null,{"$f":"menu!C173","v":"CARAMBOLA"},null,{"$f":"menu!C182","v":"LIMONADA"}]
[]
["Opción",{"$f":"menu!A183","v":"28 DE MARZO "},null,{"$f":"menu!A192","v":"29 DE MARZO "},null,{"$f":"menu!A201","v":"30 DE MARZO "},null,{"$f":"menu!A210","v":"31 DE MARZO "}]
[]
["Entrada",{"$f":"menu!C183","v":"ENSALADA FRESCA"},null,{"$f":"menu!C192","v":"ENSALADA FRESCA "},null,{"$f":"menu!C201","v":"TEQUEÑOS CON GUACAMOLE"},null,{"$f":"menu!C210","v":"PAN AL AJO "}]
["A",{"$f":"menu!C184","v":"ARROZ A LA JARDINERA CON GUISO DE CARNE"},null,{"$f":"menu!C193","v":"AJÍ DE GALLINA "},null,{"$f":"menu!C202","v":"GUISO DE CARNE CON ARROZ"},null,{"$f":"menu!C211","v":"LASAGNA DE CARNE "}]
["B",{"$f":"menu!C185","v":"CORDON BLEU DE POLLO CON ARROZ"},null,{"$f":"menu!C194","v":"ARROZ CON POLLO "},null,{"$f":"menu!C203","v":"CARAPULCRA GUISADA CON CERDO/ARROZ"},null,{"$f":"menu!C212","v":"PESCADO A LA PLANCHA CON YUCA Y VEGETALES"}]
["C",{"$f":"menu!C186","v":"FILETE DE POLLO A LA PLANCHA PAPA SANCOCHADA Y VERDURAS"},null,{"$f":"menu!C195","v":"FILETE DE POLLO A LA PLANCHA , ARROZ Y VERDURAS"},null,{"$f":"menu!C204","v":"FILETE DE POLLO A LA PLANCHA PAPA SANCOCHADA Y VERDURAS"},null,{"$f":"menu!C213","v":"FILETE DE POLLO A LA PLANCHA , ARROZ Y VERDURAS"}]
["D",{"$f":"menu!C187","v":"PALTA RELLENA CON VERDURAS Y POLLO"},null,{"$f":"menu!C196","v":"ENSALADA CÉSAR CON POLLO AL GRILL "},null,{"$f":"menu!C205","v":"ENSALADA RUSA CON PAVITO"},null,{"$f":"menu!C214","v":"ENSALADA CRIOLLA CON POLLITO AL GRILL"}]
["E",{"$f":"menu!C188","v":"PECHUGUITAS DE POLLITO CON PAPITAS"},null,{"$f":"menu!C197","v":"MILANESA DE PESCADO CON PAPAS DORADAS Y ARROZ A LA JARDINERA"},null,{"$f":"menu!C206","v":"POLLO A LA OLLA CON ARROZ "},null,{"$f":"menu!C215","v":"PIERNITA A LA OLLA CON PAPAS DORADAS"}]
["V",{"$f":"menu!C189","v":"FILETE DE GLUTEN CON SALSA DE CHAMPIGNONES"},null,{"$f":"menu!C198","v":"ARVEJITAS VERDES CON GUISITO VEGETARIANO"},null,{"$f":"menu!C207","v":"ENSALADA RUSA CON HUEVO DURO"},null,{"$f":"menu!C216","v":"SOUFFLÉ DE VERDURAS CON SOYA EN CUBOS"}]
["Postre",{"$f":"menu!C190","v":"PYE DE FRUTAS"},null,{"$f":"menu!C199","v":"FRUTA DE ESTACIÓN"},null,{"$f":"menu!C208","v":"FLAN "},null,{"$f":"menu!C217","v":"CARLOTA DE FRUTA"}]
["Refresco ",{"$f":"menu!C191","v":"LIMONADA"},null,{"$f":"menu!C200","v":"MARACUYÁ"},null,{"$f":"menu!C209","v":"NARANJADA"},null,{"$f":"menu!C218","v":"LIMONADA"}]
[]
[null,null,null,null,null,null,null,"Limpiar  Pedidos"]

{"sheet":"Resumen","index":1,"n_rows":27,"n_cols":36,"rows_kept":27,"cut":false,"hidden":false,"merged":[[27,11,28,29],[22,0,22,29],[23,0,23,29],[26,0,26,29],[24,11,25,29],[15,1,15,29],[16,1,16,29],[0,0,1,0],[0,1,1,29],[6,0,8,27],[11,0,14,29],[10,0,10,29]]}
[null,"No se aceptarán nuevos pedidos ni cambios de opción con menos de 03 días (72 horas) de anticipación, excepto dietas por enfermedad"]
[]
["NOMBRES Y APELLIDOS","SECCION Y GRADO",{"$f":"menu!A3","v":0},{"$f":"menu!A12","v":"1 DE MARZO "},{"$f":"menu!A21","v":"2 DE MARZO "},{"$f":"menu!A30","v":"3 DE MARZO "},{"$f":"menu!A39","v":"4 DE MARZO "},{"$f":"menu!A48","v":"7 DE MARZO "},{"$f":"menu!A57","v":"8 DE MARZO "},{"$f":"menu!A66","v":"9 DE MARZO "},{"$f":"menu!A75","v":"10 DE MARZO "},{"$f":"menu!A84","v":"11 DE MARZO "},{"$f":"menu!A93","v":"14 DE MARZO "},{"$f":"menu!A102","v":"15 DE MARZO "},{"$f":"menu!A111","v":"16 DE MARZO "},{"$f":"menu!A120","v":"17 DE MARZO "},{"$f":"menu!A129","v":"18 DE MARZO "},{"$f":"menu!A138","v":"21 DE MARZO "},{"$f":"menu!A147","v":"22 DE MARZO "},{"$f":"menu!A156","v":"23 DE MARZO "},{"$f":"menu!A165","v":"24 DE MARZO "},{"$f":"menu!A174","v":"25 DE MARZO "},{"$f":"menu!A183","v":"28 DE MARZO "},{"$f":"menu!A192","v":"29 DE MARZO "},{"$f":"menu!A201","v":"30 DE MARZO "},{"$f":"menu!A210","v":"31 DE MARZO "},{"$f":"menu!A219","v":0},"Número de Almuerzos","COSTO DIARIO ","Total Soles"]
["PEDIDO ALU2",null,1,1]
["PEDIDO ALU1"]
[null,null,{"$f":"IF(C5=1,\"A\",IF(C5=2,\"B\",IF(C5=3,\"C\",IF(C5=4,\"D\",IF(C5=5,\"E\",IF(C5=6,\"V\",\"\"))))))","v":""},{"$f":"IF(D5=1,\"A\",IF(D5=2,\"B\",IF(D5=3,\"C\",IF(D5=4,\"D\",IF(D5=5,\"E\",IF(D5=6,\"V\",\"\"))))))","v":""},"","","","","","","","","","","","","","","","","","","","","","","",{"$f":"COUNTA(C5:AA5)","v":0},11,{"$f":"AB6*AC6","v":0},{"$f":"COUNTIF(C6:Z6,\"a\")","v":0},{"$f":"COUNTIF(C6:Z6,\"z\")","v":0},{"$f":"COUNTIF(C6:Z6,\"b\")","v":0},{"$f":"COUNTIF(C6:Z6,\"c\")","v":0},{"$f":"COUNTIF(C6:Z6,\"d\")","v":0},{"$f":"COUNTIF(C6:Z6,\"e\")","v":0}]
["RECUERDE QUE DESPUES DE ENVIAR SU PEDIDO (E-MAIL) TIENE 05 DIAS UTILES PARA ENVIARNOS SU VOUCHER O TRANSFERENCIA DE PAGO MEDIANTE E-MAIL.\nLA MORA SE COBRA SOLO  DESPUES DEL 5TO DIA DE SERVICIO  EN CASO USTED NO REALICE EL ABONO.",null,null,null,null,null,null,null,null,null,null,null,null,null,null,null,null,null,null,null,null,null,null,null,null,null,null,null,"TOTAL ",{"$f":"SUM(AD6:AD6)","v":0}]
[null,null,null,null,null,null,null,null,null,null,null,null,null,null,null,null,null,null,null,null,null,null,null,null,null,null,null,null,null,{"$f":"12","v":12}]
[null,null,null,null,null,null,null,null,null,null,null,null,null,null,null,null,null,null,null,null,null,null,null,null,null,null,null,null,"PAGO CON MORA "]
[]
["RESUMEN DE PEDIDO TOTAL:"]
["          CORREO ELECTRÓNICO:\n LUNCH-SM@happylunchesservice.com"]
[]
[]
[]
[]
[]
[]
[]
[]
[]
[]
["HORARIO DE ATENCIÓN AL CLIENTE: TELÉFONOS FIJOS - LUNES A VIERNES DE 7AM - 4PM    CELULARES: 7AM - 4PM"]
["Teléfonos:  445-8009  ó  250-8990         Maite Valdivia: 967759206"]
[]
[]
["Encuentre el menú en :    www.happylunchesservice.com"]

{"sheet":"menu","index":2,"n_rows":227,"n_cols":3,"rows_kept":227,"cut":false,"hidden":true,"merged":[[191,0,199,0],[200,0,208,0],[209,0,217,0],[173,0,181,0],[182,0,190,0],[128,0,136,0],[137,0,145,0],[146,0,154,0],[155,0,163,0],[164,0,172,0],[83,0,91,0],[92,0,100,0],[101,0,109,0],[110,0,118,0],[119,0,127,0],[38,0,46,0],[47,0,55,0],[56,0,64,0],[65,0,73,0],[74,0,82,0],[0,0,0,2],[2,0,10,0],[11,0,19,0],[20,0,28,0],[29,0,37,0]]}
["Desde esta hoja de cálculo se ingresan los pedidos mensuales para que se actulicen los calendarios NO SE MUESTRA A LOS CLIENTES\n*SOLO SE CAMBIA DÍA Y MENU"]
["DIAS","OPCIONES"]
[null,"Entrada"]
[null,"A"]
[null,"B"]
[null,"C"]
[null,"D"]
[null,"E"]
[null,"V"]
[null,"postre"]
[null,"refresco"]
["1 DE MARZO ","Entrada","PAPAS EMPEREJILADAS"]
[null,"A","VAINITAS SALTEADAS CON RES / ARROZ"]
[null,"B","LENTEJAS GUISADAS CON RES Y HUEVO AL GRILL Y ARROZ PRIMAVERA"]
[null,"C","FILETE DE POLLO A LA PLANCHA , ARROZ Y VERDURAS"]
[null,"D","ENSALADA DE BRÓCOLI CON POLLITO EN DADOS"]
[null,"E","HUEVITOS EN SU NIDO CON VERDURAS Y ARROZ"]
[null,"V","SALTADO DE BRÓCOLI Y SOYA"]
[null,"postre","CHICHA MORADA"]
[null,"refresco","ALFAJOR"]
["2 DE MARZO ","Entrada","PAPA A LA HUANCAINA"]
[null,"A","ARROZ CON POLLO "]
[null,"B","HAMBURGUESA AL PLATO CON ARROZ PRIMAVERA"]
[null,"C","FILETE DE POLLO A LA PLANCHA PAPA SANCOCHADA Y VERDURAS"]
[null,"D","ENSALADA DE ATÚN "]
[null,"E","DEDITOS DE PESCADO CON YUCAS FRITAS "]
[null,"V","FIDEOS EN SALSA DE ALBAHACA"]
[null,"postre","MUFFIN DE FRUTA"]
[null,"refresco","NARANJADA"]
["3 DE MARZO ","Entrada","ENSALADA PARRILLERA"]
[null,"A","ARVEJITAS VERDES CON HUEVITO AL GRILL/ARROZ PRIMAVERA"]
[null,"B","POLLO EN SALSA DE CHAMPIGNONES CON ARROZ"]
[null,"C","FILETE DE POLLO A LA PLANCHA , ARROZ Y VERDURAS"]
[null,"D","ENSALADA DE GARBANZOS CON POLLITO"]
[null,"E","POLLITO ANTICUCHADO CON PURÉ DE ESPINACAS"]
[null,"V","ARROZ CHAUFA VEGETARIANO"]
[null,"postre","GELATINA DE COLORES"]
[null,"refresco","CEBADA"]
["4 DE MARZO ","Entrada","SOUFFLÉ DE VERDURAS"]
[null,"A","ESTOFADO DE POLLO CON ARROZ"]
[null,"B","SPAGHETTI A LA HUANCAINA CON LOMITO AL JUGO"]
[null,"C","FILETE DE POLLO A LA PLANCHA PAPA SANCOCHADA Y VERDURAS"]
[null,"D","ENSALADA CRIOLLA CON POLLO AL GRILL "]
[null,"E","PIZZA CLÁSICA CON ENSALADA"]
[null,"V","LASAGNA VEGETARIANA"]
[null,"postre","DELICIA DE LIMÓN"]
[null,"refresco","CARAMBOLA"]
["7 DE MARZO ","Entrada","ENSALADA DE PALTA"]
[null,"A","SECO DE RES CON ARROZ"]
[null,"B","SPAGHETTI EN SALSA BOLOGNESA"]
[null,"C","FILETE DE POLLO A LA PLANCHA , ARROZ Y VERDURAS"]
[null,"D","ENSALADA CHEFF CON POLLO AL GRILL "]
[null,"E","OMELETTE CON POLLO EN TROZOS Y ARROZ PRIMAVERA"]
[null,"V","FILETE DE GLUTEN CON SALSA DE CHAMPIGNONES"]
[null,"postre","PYE DE MANZANA"]
[null,"refresco","LIMONADA"]
["8 DE MARZO ","Entrada","ENSALADA DE PEPINO"]
[null,"A","ARROZ CHAUFA DE POLLO Y CARNE"]
[null,"B","CAIHUA RELLENA DE CARNE CON ARROZ PRIMAVERA"]
[null,"C","FILETE DE POLLO A LA PLANCHA PAPA SANCOCHADA Y VERDURAS"]
[null,"D","ENSALADA DELICIA CON PAVO"]
[null,"E","NUGGETS AL HORNO CON PAPAS DORADAS Y BRÓCOLI"]
[null,"V","HAMBURGUESA VEGETARIANA AL PLATO"]
[null,"postre","BOMBITAS HL"]
[null,"refresco","CHICHA MORADA"]
["9 DE MARZO ","Entrada","ENSALADITA ORIENTAL "]
[null,"A","POLLO SALTADO CON ARROZ"]
[null,"B","PESCADO A LA PLANCHA CON VERDURAS Y ARROZ"]
[null,"C","FILETE DE POLLO A LA PLANCHA , ARROZ Y VERDURAS"]
[null,"D"," PALTA RELLENA CON POLLO Y VERDURAS"]
[null,"E","POLLO AL GRILL CON PAPITAS Y VERDURAS"]
[null,"V","CAUSA VEGETARIANA TRICOLOR"]
[null,"postre","FLAN CON GELATINA"]
[null,"refresco","MARACUYÁ"]
["10 DE MARZO ","Entrada","VERDURAS SALTEADAS"]
[null,"A","POLLO A LA OLLA CON ARROZ A LA JARDINERA"]
[null,"B","SPAGHETTI A LA CARBONARA CON POLLO"]
[null,"C","FILETE DE POLLO A LA PLANCHA PAPA SANCOCHADA Y VERDURAS"]
[null,"D","ENSALADA WALDORF CON POLLO AL HORNO"]
[null,"E","HUEVITOS EN SU NIDO CON PAPITAS"]
[null,"V","SALTADO VEGETARIANO DE COLIFLOR CON ARROZ"]
[null,"postre","FRUTA DE ESTACIÓN"]
[null,"refresco","CARAMBOLA"]
["11 DE MARZO ","Entrada","ENSALADA FRESCA"]
[null,"A","CARAPULCRA GUISADA CON CERDO Y ARROZ"]
[null,"B","PAPA RELLENA DE POLLO CON ARROZ PRIMAVERA"]
[null,"C","FILETE DE POLLO A LA PLANCHA , ARROZ Y VERDURAS"]
[null,"D","ENSALADA DE FIDEOS CON POLLITO"]
[null,"E","BISTECK CON PURÉ DE PAPA AMARILLA Y VERDURAS"]
[null,"V","LENTEJAS GUISADAS / HUEVO FRITO Y ARROZ"]
[null,"postre","GELATINA"]
[null,"refresco","LIMONADA"]
["14 DE MARZO ","Entrada","PAPAS EMPEREJILADAS"]
[null,"A","PESCADO A LA PLANCHA CON VERDURAS SALTEADAS"]
[null,"B","CORDON BLEU CON ARROZ  PRIMAVERA"]
[null,"C","FILETE DE POLLO A LA PLANCHA PAPA SANCOCHADA Y VERDURAS"]
[null,"D","ENSALADA DE CAIHUA CON POLLO AL GRILL"]
[null,"E","PIZZA CLÁSICA CON ENSALADITA"]
[null,"V","HAMBURGUESA VEGETARIANA CON PURÉ DE PAPA AMARILLA"]
[null,"postre","ALFAJOR"]
[null,"refresco","LIMONADA"]
["15 DE MARZO ","Entrada","ENSALADA DE PEPINO"]
[null,"A","TALLARINES SALTADOS CON CARNE"]
[null,"B","POLLO AL SILLAO CON ARROZ PRIMAVERA"]
[null,"C","FILETE DE POLLO A LA PLANCHA , ARROZ Y VERDURAS"]
[null,"D","ENSALADA FRESCA CON POLLO AL GRILL "]
[null,"E","POLLO CON PIÑA / ARROZ CHAUFA"]
[null,"V","SALTADO DE CHOCLO VEGETARIANO"]
[null,"postre","QUEQUE DE FRUTAS"]
[null,"refresco","CHICHA MORADA"]
["16 DE MARZO ","Entrada","VERDURAS SALTEADAS"]
[null,"A","POLLO A LA REINA CON ARROZ"]
[null,"B","ARROZ A LA CUBANA CON POLLO AL GRILL"]
[null,"C","FILETE DE POLLO A LA PLANCHA PAPA SANCOCHADA Y VERDURAS"]
[null,"D","ENSALADA FRESCA CON POLLO ANTICUCHADO"]
[null,"E","HAMBURGUESA DE RES AL PLATO CON ARROZ PRIMAVERA"]
[null,"V","TORTILLA DE COLIFLOR VEGETARIANA CON ARROZ"]
[null,"postre","PIE DE MANZANA"]
[null,"refresco","LIMONADA"]
["17 DE MARZO ","Entrada","TEQUEÑOS RELLENOS"]
[null,"A","CAU-CAU DE POLLO CON ARROZ"]
[null,"B","FRIJOLES CANARIO CON GUISO DE RES Y ARROZ PRIMAVERA"]
[null,"C","FILETE DE POLLO A LA PLANCHA , ARROZ Y VERDURAS"]
[null,"D","ENSALADA CÉSAR CON POLLITO AL GRILL"]
[null,"E","DEDITOS DE PESCADO CON YUQUITAS AL HORNO"]
[null,"V","SALTADO VEGETARIANO CON ARROZ"]
[null,"postre","GALLETAS NATURALES"]
[null,"refresco","AGUA MINERAL"]
["18 DE MARZO ","Entrada","WANTAN CON TAMARINDO"]
[null,"A","GUISITO DE CARNE CON ARROZ A LA JARDINERA"]
[null,"B","ARROZ CHAUFA DE POLLO"]
[null,"C","FILETE DE POLLO A LA PLANCHA PAPA SANCOCHADA Y VERDURAS"]
[null,"D","ENSALADA DE LA CASA CON POLLO AL GRILL "]
[null,"E","PAVITO CON ENSALADA RUSA "]
[null,"V","PURÉ DE ESPINACAS CON SALTADO VEGETARIANO"]
[null,"postre","FRUTA DE ESTACIÓN"]
[null,"refresco","MARACUYÁ"]
["21 DE MARZO ","Entrada","HUEVO RELLENO"]
[null,"A","BISTECK CON PAPAS DORADAS Y ARROZ PRIMAVERA"]
[null,"B","SPAGHETTI A LO ALFREDO CON POLLITO EN CUBOS"]
[null,"C","FILETE DE POLLO A LA PLANCHA , ARROZ Y VERDURAS"]
[null,"D","CAUSA RELLENA DE VERDURAS Y POLLO "]
[null,"E","MILANESA DE PESCADO CON ARROZ PRIMAVERA"]
[null,"V","GLUTEN CON SALSA DE VERDURAS Y ARROZ"]
[null,"postre","FRUTA DE ESTACIÓN"]
[null,"refresco","AGUA DE PIÑA"]
["22 DE MARZO ","Entrada","CHOCLITO CON QUESO"]
[null,"A","VAINITAS SALTADAS CON POLLO /ARROZ "]
[null,"B","SECO DE RES CON ARROZ"]
[null,"C","FILETE DE POLLO A LA PLANCHA PAPA SANCOCHADA Y VERDURAS"]
[null,"D","ENSALADA STROGONOFF CON POLLITO"]
[null,"E","PIERNITA AL SILLAO CON ARROZ PRIMAVERA"]
[null,"V","ARROZ CHAUFA VEGETARIANO"]
[null,"postre","AGUA DE MANZANA"]
[null,"refresco","CARLOTA DE FRUTAS"]
["23 DE MARZO ","Entrada","ENSALADA FRESCA"]
[null,"A","POLLO AL SILLAO CON ARROZ A LA JARDINERA"]
[null,"B","ARROZ TAPADO CON PLATANITO AL GRILL "]
[null,"C","FILETE DE POLLO A LA PLANCHA , ARROZ Y VERDURAS"]
[null,"D","ENSALADA ORIENTAL CON POLLITO AL GRILL"]
[null,"E","DEDITOS DE POLLO CON LENTEJAS GUISADAS Y ARROZ PRIMAVERA"]
[null,"V","TORTILLA DE VEGETALES CON ARROZ"]
[null,"postre","DELICIA DE FRUTAS"]
[null,"refresco","MARACUYÁ"]
["24 DE MARZO ","Entrada","ENSALADA DE COL"]
[null,"A","SPAGHETTI AL PESTO CON HAMBURGUESA DE CARNE"]
[null,"B","POLLO A LA OLLA CON ARROZ"]
[null,"C","FILETE DE POLLO A LA PLANCHA PAPA SANCOCHADA Y VERDURAS"]
[null,"D","SOUFFLÉ DE VERDURAS CON POLLO AL GRILL "]
[null,"E","SPAGHETTI EN SALSA DE ALBAHACA CON POLLITO"]
[null,"V","ARROZ CHAUFA VEGETARIANO"]
[null,"postre","ALFAJOR"]
[null,"refresco","CARAMBOLA"]
["25 DE MARZO ","Entrada","OCOPA"]
[null,"A","POLLO AL HORNO CON PURÉ DE ESPINACA Y ARROZ"]
[null,"B","LOCRO GUISADO CON QUESO/HUEVITO Y ARROZ"]
[null,"C","FILETE DE POLLO A LA PLANCHA , ARROZ Y VERDURAS"]
[null,"D","SOLTERITO CON POLLITO A LA PLANCHA"]
[null,"E","NUGGETS AL HORNO CON TEQUEÑOS CON GUACAMOLE"]
[null,"V","CAUCAU VEGETARIANO CON ARROZ"]
[null,"postre","GALLETAS NATURALES"]
[null,"refresco","LIMONADA"]
["28 DE MARZO ","Entrada","ENSALADA FRESCA"]
[null,"A","ARROZ A LA JARDINERA CON GUISO DE CARNE"]
[null,"B","CORDON BLEU DE POLLO CON ARROZ"]
[null,"C","FILETE DE POLLO A LA PLANCHA PAPA SANCOCHADA Y VERDURAS"]
[null,"D","PALTA RELLENA CON VERDURAS Y POLLO"]
[null,"E","PECHUGUITAS DE POLLITO CON PAPITAS"]
[null,"V","FILETE DE GLUTEN CON SALSA DE CHAMPIGNONES"]
[null,"postre","PYE DE FRUTAS"]
[null,"refresco","LIMONADA"]
["29 DE MARZO ","Entrada","ENSALADA FRESCA "]
[null,"A","AJÍ DE GALLINA "]
[null,"B","ARROZ CON POLLO "]
[null,"C","FILETE DE POLLO A LA PLANCHA , ARROZ Y VERDURAS"]
[null,"D","ENSALADA CÉSAR CON POLLO AL GRILL "]
[null,"E","MILANESA DE PESCADO CON PAPAS DORADAS Y ARROZ A LA JARDINERA"]
[null,"V","ARVEJITAS VERDES CON GUISITO VEGETARIANO"]
[null,"postre","FRUTA DE ESTACIÓN"]
[null,"refresco","MARACUYÁ"]
["30 DE MARZO ","Entrada","TEQUEÑOS CON GUACAMOLE"]
[null,"A","GUISO DE CARNE CON ARROZ"]
[null,"B","CARAPULCRA GUISADA CON CERDO/ARROZ"]
[null,"C","FILETE DE POLLO A LA PLANCHA PAPA SANCOCHADA Y VERDURAS"]
[null,"D","ENSALADA RUSA CON PAVITO"]
[null,"E","POLLO A LA OLLA CON ARROZ "]
[null,"V","ENSALADA RUSA CON HUEVO DURO"]
[null,"postre","FLAN "]
[null,"refresco","NARANJADA"]
["31 DE MARZO ","Entrada","PAN AL AJO "]
[null,"A","LASAGNA DE CARNE "]
[null,"B","PESCADO A LA PLANCHA CON YUCA Y VEGETALES"]
[null,"C","FILETE DE POLLO A LA PLANCHA , ARROZ Y VERDURAS"]
[null,"D","ENSALADA CRIOLLA CON POLLITO AL GRILL"]
[null,"E","PIERNITA A LA OLLA CON PAPAS DORADAS"]
[null,"V","SOUFFLÉ DE VERDURAS CON SOYA EN CUBOS"]
[null,"postre","CARLOTA DE FRUTA"]
[null,"refresco","LIMONADA"]
[null,"Entrada"]
[null,"A"]
[null,"B"]
[null,"C"]
[null,"D"]
[null,"E"]
[null,"V"]
[null,"postre"]
[null,"refresco"]